bitfinex/quotes_BTCUSD_20250314
["timestamp","ask_amount","ask_price","bid_price","bid_amount"]
[1741915247071,0.245535,81455.0,81452.0,0.75983408]
[1741915247227,0.3,81460.0,81454.0,0.25781]
[1741915247426,0.245495,81468.0,81462.0,0.257788]
[1741915247611,0.3,81467.0,81463.0,0.00326488]
[1741915247811,0.012274,81472.0,81463.0,0.01553988]
[1741915248041,0.3,81472.0,81468.0,0.245495]
[1741915248247,0.3,81472.0,81467.0,0.012274]
[1741915248436,0.245486,81471.0,81468.0,0.00326488]
[1741915248725,0.257765,81470.0,81464.0,0.245507]
[1741915248937,0.3,81472.0,81469.0,0.00326488]
[1741915249133,0.01924088,81471.0,81467.0,0.25777]
[1741915249331,0.01924088,81471.0,81470.0,0.00227847]
[1741915249533,0.01924088,81471.0,81468.0,0.012274]
[1741915249761,0.01924088,81471.0,81470.0,0.00323301]
[1741915249922,0.01924088,81471.0,81467.0,0.012274]
[1741915250123,0.002,81470.0,81467.0,0.012274]
[1741915250344,0.01924088,81471.0,81467.0,0.012274]
[1741915250560,0.01924088,81471.0,81467.0,0.257772]
[1741915250762,0.02124088,81471.0,81469.0,0.091674]
[1741915250975,0.01924088,81471.0,81469.0,0.091674]
[1741915251639,0.01924088,81471.0,81469.0,0.337165]
[1741915252359,0.002,81470.0,81469.0,0.35170585]
[1741915252589,0.01924088,81471.0,81470.0,0.02681485]
[1741915252809,4.128e-05,81474.0,81473.0,0.27229485]
[1741915253462,4.128e-05,81474.0,81473.0,0.01454085]
[1741915253718,4.128e-05,81474.0,81471.0,0.0496]
[1741915253719,0.012274,81473.0,81471.0,0.0496]
[1741915253956,4.128e-05,81474.0,81471.0,0.0496]
[1741915254180,4.128e-05,81474.0,81473.0,0.002]
[1741915254614,4.128e-05,81474.0,81473.0,0.006]
[1741915255115,4.128e-05,81474.0,81473.0,0.25148]
[1741915255323,4.128e-05,81474.0,81473.0,0.263754]
[1741915255548,4.128e-05,81474.0,81473.0,0.261754]
[1741915256223,4.128e-05,81474.0,81473.0,0.27629485]
[1741915256440,4.128e-05,81474.0,81473.0,0.40519485]
[1741915257121,4.128e-05,81474.0,81473.0,0.40842786]
[1741915257506,4.128e-05,81474.0,81473.0,0.40442786]
[1741915257927,4.128e-05,81474.0,81473.0,0.40842786]
[1741915258671,4.128e-05,81474.0,81473.0,0.40642786]
[1741915258881,4.128e-05,81474.0,81473.0,0.40942786]
[1741915259315,4.128e-05,81474.0,81473.0,0.13713301]
[1741915259516,4.128e-05,81474.0,81473.0,0.22869301]
[1741915259734,4.128e-05,81474.0,81473.0,0.24096701]
[1741915260977,0.01927893,81474.0,81473.0,0.24096701]
[1741915262043,0.01927893,81474.0,81473.0,0.30270786]
[1741915265107,0.03155193,81474.0,81473.0,0.15059301]
[1741915265311,4.128e-05,81474.0,81473.0,0.16286701]
[1741915266385,4.128e-05,81474.0,81473.0,0.30273517]
[1741915266628,4.128e-05,81474.0,81473.0,0.30150786]
[1741915269975,4.128e-05,81474.0,81473.0,0.29750786]
[1741915270193,4.128e-05,81474.0,81473.0,0.30350786]
[1741915270384,4.128e-05,81474.0,81473.0,0.30050786]
[1741915271821,4.128e-05,81474.0,81473.0,0.30650786]
[1741915276230,4.128e-05,81474.0,81473.0,0.31800007]
[1741915279149,0.00037948,81474.0,81473.0,0.31800007]
[1741915283616,0.00037948,81474.0,81473.0,0.27160007]
[1741915283817,0.00037948,81474.0,81473.0,0.13124007]
[1741915284020,0.00037948,81474.0,81473.0,0.27156007]
[1741915285448,0.00037948,81474.0,81473.0,0.13124007]
[1741915285648,0.00037948,81474.0,81473.0,0.27156007]
[1741915290131,0.00037948,81474.0,81473.0,1.05092007]
[1741915291722,0.00037948,81474.0,81473.0,1.09852007]
[1741915294850,0.00037948,81474.0,81473.0,0.95820007]
[1741915295205,0.00037948,81474.0,81473.0,1.03637922]
[1741915295445,0.00037948,81474.0,81473.0,1.03942786]
[1741915295792,0.00037948,81474.0,81473.0,1.05094521]
[1741915301128,0.00037948,81474.0,81473.0,1.46024521]
[1741915308037,0.01179445,81483.0,81473.0,1.46024521]
[1741915308260,2e-07,81488.0,81487.0,0.27224885]
[1741915308488,2e-07,81488.0,81487.0,1.24794032]
[1741915308696,2e-07,81488.0,81487.0,1.41824907]
[1741915308909,2e-07,81488.0,81487.0,1.42976642]
[1741915309074,0.0498,81526.0,81516.0,0.257617]
[1741915309269,0.10986077,81531.0,81516.0,0.41243785]
[1741915309535,0.10986077,81531.0,81516.0,0.41562301]
[1741915310128,0.10986077,81531.0,81516.0,0.42714036]
[1741915310331,0.00039398,81517.0,81516.0,0.42714036]
[1741915310547,0.00039398,81517.0,81516.0,0.43014036]
[1741915311572,0.00039398,81517.0,81516.0,0.42714036]
[1741915312151,0.00039398,81517.0,81516.0,0.41562301]
[1741915312737,0.00039398,81517.0,81516.0,0.41662301]
[1741915312934,0.00039398,81517.0,81516.0,0.44165178]
[1741915313147,0.00039398,81517.0,81516.0,0.44565178]
[1741915313796,0.00039398,81517.0,81516.0,0.44165178]
[1741915314249,0.00039398,81517.0,81516.0,0.44565178]
[1741915315567,0.00039398,81517.0,81516.0,0.44865178]
[1741915316542,0.00039398,81517.0,81516.0,0.44365178]
[1741915316742,0.00039398,81517.0,81516.0,0.44565178]
[1741915316939,0.00039398,81517.0,81516.0,0.45165178]
[1741915317350,0.00039398,81517.0,81516.0,0.44665178]
[1741915317565,0.00039398,81517.0,81516.0,0.45265178]
[1741915318445,0.00039398,81517.0,81516.0,0.53055178]
[1741915321036,0.00039398,81517.0,81516.0,0.53051178]
[1741915321783,0.00039398,81517.0,81516.0,0.52451178]
[1741915322133,0.00039398,81517.0,81516.0,0.53051178]
[1741915322666,0.00039398,81517.0,81516.0,0.52451178]
[1741915323069,0.00039398,81517.0,81516.0,0.53051178]
[1741915327707,0.00039398,81517.0,81516.0,0.04021393]
[1741915327914,0.03596602,81517.0,81516.0,0.18041393]
[1741915328076,0.02369902,81517.0,81516.0,0.19495478]
[1741915329081,0.02369902,81517.0,81516.0,0.18295478]
[1741915329290,0.00039398,81517.0,81516.0,0.18795478]
[1741915329498,0.00039398,81517.0,81516.0,0.20022178]
[1741915329706,0.00039398,81517.0,81516.0,0.19822178]
[1741915330248,0.00039398,81517.0,81516.0,0.20322178]
[1741915332597,0.00039398,81517.0,81516.0,0.98218178]
[1741915334829,0.00039398,81517.0,81516.0,0.96991478]
[1741915336956,0.00039398,81517.0,81516.0,0.79014516]
[1741915336957,0.25800798,81517.0,81516.0,0.79014516]
[1741915337194,0.30430798,81517.0,81516.0,0.93034516]
[1741915337564,0.60430798,81517.0,81516.0,0.93034516]
[1741915338151,0.60430798,81517.0,81516.0,0.92534516]
[1741915338920,0.60430798,81517.0,81516.0,0.92634516]
[1741915341516,0.62353799,81517.0,81516.0,0.92634516]
[1741915341928,0.07779701,81517.0,81516.0,0.92634516]
[1741915342588,0.32314401,81517.0,81516.0,0.92634516]
[1741915346104,0.27684401,81517.0,81516.0,0.92634516]
[1741915347628,0.57684401,81517.0,81516.0,0.92634516]
[1741915348024,0.3874909,81517.0,81516.0,0.92634516]
[1741915350491,0.08766,81517.0,81516.0,0.92634516]
[1741915351363,0.10688938,81517.0,81516.0,0.92634516]
[1741915351792,0.10688938,81517.0,81516.0,0.14738516]
[1741915352048,0.10688938,81517.0,81516.0,0.1442]
[1741915356487,0.257667,81500.0,81499.0,0.77916]
[1741915356697,0.557667,81500.0,81499.0,0.77916]
[1741915356834,0.557667,81500.0,81499.0,0.78227916]
[1741915357845,0.557667,81500.0,81499.0,0.78427916]
[1741915358360,0.557667,81500.0,81499.0,0.78527916]
[1741915359605,0.5769008,81500.0,81499.0,0.78527916]
[1741915360390,0.5769008,81500.0,81499.0,0.00611916]
[1741915360611,0.5769008,81500.0,81499.0,0.003]
[1741915362273,0.5769008,81500.0,81499.0,0.0033382]
[1741915364189,0.58599876,81500.0,81499.0,0.0033382]
[1741915365171,0.0192338,81500.0,81499.0,0.0033382]
[1741915365345,0.245386,81504.0,81499.0,0.0033382]
[1741915365484,0.257651,81506.0,81499.0,0.26416466]
[1741915365941,0.312268,81509.0,81503.0,0.012269]
[1741915366144,0.257632,81512.0,81505.0,0.012269]
[1741915366302,0.257642,81509.0,81504.0,0.40107374]
[1741915366486,0.257642,81509.0,81504.0,0.14024]
[1741915366721,0.012269,81506.0,81505.0,0.00318074]
[1741915368755,0.012269,81506.0,81505.0,0.00618074]
[1741915369461,0.312269,81506.0,81505.0,0.003]
[1741915369981,0.33150228,81506.0,81505.0,0.004]
[1741915370438,0.33150228,81506.0,81505.0,0.003]
[1741915370612,0.557652,81505.0,81504.0,0.14024]
[1741915371632,0.257667,81500.0,81499.0,0.0003382]
[1741915371871,0.257667,81500.0,81499.0,0.00350914]
[1741915371996,0.257667,81500.0,81499.0,0.0003382]
[1741915372205,0.257667,81500.0,81499.0,0.00352124]
[1741915373137,0.257667,81500.0,81499.0,0.00452124]
[1741915375021,0.257667,81500.0,81499.0,0.00752124]
[1741915380350,0.01923328,81506.0,81501.0,0.012269]
[1741915380552,0.245368,81511.0,81505.0,0.012269]
[1741915380726,0.245371,81509.0,81505.0,0.012269]
[1741915380901,0.245371,81509.0,81504.0,0.245385]
[1741915381104,0.257648,81507.0,81506.0,0.00318201]
[1741915381451,0.257664,81501.0,81500.0,0.09654085]
[1741915381643,0.257661,81503.0,81501.0,0.01554085]
[1741915382233,0.257661,81503.0,81502.0,0.00318201]
[1741915382426,0.012269,81502.0,81501.0,0.01454085]
[1741915382633,0.012269,81502.0,81501.0,0.01772286]
[1741915383232,0.012269,81502.0,81501.0,0.00318201]
[1741915383391,0.012269,81500.0,81499.0,0.0003382]
[1741915383595,0.012269,81500.0,81499.0,0.1405382]
[1741915384895,0.3192322,81502.0,81499.0,0.1405382]
[1741915385092,0.5768942,81502.0,81499.0,0.1405382]
[1741915385299,0.257667,81500.0,81499.0,0.1435382]
[1741915386233,0.56632546,81502.0,81501.0,0.0003382]
[1741915386461,0.557662,81502.0,81501.0,0.0003382]
[1741915388315,0.557662,81502.0,81501.0,0.0023382]
[1741915388873,0.557662,81502.0,81501.0,0.0033382]
[1741915391066,0.57689567,81502.0,81501.0,0.0033382]
[1741915391435,0.24762805,81502.0,81501.0,0.0033382]
[1741915396644,0.54762805,81502.0,81501.0,0.0033382]
[1741915399764,0.54779715,81502.0,81501.0,0.0033382]
[1741915404943,0.7115734,81502.0,81501.0,0.0033382]
[1741915405343,0.7115734,81502.0,81501.0,2e-07]
[1741915405553,0.7614734,81502.0,81501.0,2e-07]
[1741915405758,0.634367,81500.0,81499.0,4e-07]
[1741915406118,0.557702,81489.0,81488.0,0.000169]
[1741915406521,0.557702,81489.0,81488.0,0.00322472]
[1741915406765,0.557702,81489.0,81488.0,0.000169]
[1741915407357,0.557702,81489.0,81488.0,0.00056035]
[1741915408326,0.57693974,81489.0,81488.0,0.00056035]
[1741915408578,0.57693974,81489.0,81488.0,0.00356035]
[1741915409533,0.57693974,81489.0,81488.0,0.00456035]
[1741915411853,0.01923774,81489.0,81488.0,0.00456035]
[1741915412321,0.26466874,81489.0,81488.0,0.00456035]
[1741915412522,0.27693974,81489.0,81488.0,0.00456035]
[1741915413104,0.257702,81489.0,81488.0,0.00456035]
[1741915415072,0.257674,81498.0,81491.0,0.245424]
[1741915415247,0.245427,81491.0,81488.0,0.00456035]
[1741915415488,0.245427,81491.0,81489.0,0.1402]
[1741915415638,0.257698,81491.0,81489.0,0.1402]
[1741915416565,0.27693352,81491.0,81489.0,0.1402]
[1741915416877,0.01923552,81491.0,81489.0,0.1402]
[1741915417155,0.01923552,81491.0,81490.0,0.323128]
[1741915417755,0.01923552,81491.0,81490.0,0.335399]
[1741915418111,0.01923552,81491.0,81490.0,0.0777]
[1741915418856,0.01923552,81491.0,81489.0,0.1432]
[1741915418857,0.257699,81490.0,81489.0,0.1432]
[1741915419265,0.257699,81490.0,81489.0,0.1402]
[1741915419968,0.257699,81490.0,81489.0,0.1412]
[1741915421528,0.257699,81490.0,81489.0,0.1442]
[1741915422228,0.25628657,81492.0,81489.0,0.1442]
[1741915422507,0.257699,81490.0,81489.0,0.1442]
[1741915423114,0.257699,81490.0,81489.0,0.1412]
[1741915423271,0.257699,81490.0,81489.0,0.1422]
[1741915424473,0.2580372,81490.0,81489.0,0.1422]
[1741915424677,0.2580372,81490.0,81489.0,0.1402]
[1741915425161,0.2580372,81490.0,81489.0,0.004]
[1741915425781,0.0003382,81490.0,81489.0,0.004]
[1741915426083,0.01957387,81490.0,81489.0,0.004]
[1741915426685,0.01957387,81490.0,81489.0,0.00709322]
[1741915427312,0.03184487,81490.0,81489.0,0.00709322]
[1741915431794,0.01957387,81490.0,81489.0,0.00709322]
[1741915431929,0.01957387,81490.0,81489.0,0.01936422]
[1741915432338,0.01957387,81490.0,81489.0,0.09456422]
[1741915436853,0.01957387,81490.0,81489.0,0.09473332]
[1741915438079,0.01957387,81490.0,81489.0,0.10927417]
[1741915438292,0.0003382,81490.0,81489.0,0.10927417]
[1741915438961,0.0003382,81490.0,81489.0,0.10527417]
[1741915439417,0.0003382,81490.0,81489.0,0.11127417]
[1741915439624,0.0003382,81490.0,81489.0,0.11527417]
[1741915441431,0.0195719,81490.0,81489.0,0.11527417]
[1741915446049,0.0195719,81490.0,81489.0,0.25543417]
[1741915462973,0.0195719,81490.0,81489.0,0.18023417]
[1741915463688,0.00457209,81490.0,81489.0,0.30666123]
[1741915463925,0.257628,81513.0,81501.0,0.012269]
[1741915464058,0.2577881,81516.0,81501.0,0.34940485]
[1741915464264,0.2577881,81516.0,81501.0,0.35244574]
[1741915464467,0.0001691,81516.0,81501.0,0.35244574]
[1741915464804,0.0001691,81516.0,81501.0,0.40044574]
[1741915466184,0.0001691,81516.0,81501.0,0.42497991]
[1741915466389,0.0001691,81516.0,81501.0,0.72497991]
[1741915466794,0.0001691,81516.0,81501.0,0.72697991]
[1741915466999,0.0001691,81516.0,81501.0,0.72997991]
[1741915467197,0.0001691,81516.0,81501.0,0.72797991]
[1741915467397,0.0001691,81516.0,81501.0,0.73397991]
[1741915467610,0.0001691,81516.0,81501.0,0.73097991]
[1741915467794,0.0001691,81516.0,81501.0,0.73697991]
[1741915470254,0.0001691,81516.0,81501.0,0.78697991]
[1741915470255,1e-07,81502.0,81501.0,0.78697991]
[1741915470565,1e-07,81502.0,81501.0,1.3209809]
[1741915470707,1e-07,81502.0,81501.0,2.04079576]
[1741915470897,1e-07,81502.0,81501.0,2.0025809]
[1741915471105,1e-07,81502.0,81501.0,2.03479726]
[1741915471330,1e-07,81502.0,81501.0,2.04079726]
[1741915471536,1e-07,81502.0,81501.0,1.9965809]
[1741915471754,1e-07,81502.0,81501.0,2.04077127]
[1741915471952,1e-07,81502.0,81501.0,1.9965809]
[1741915472131,1e-07,81502.0,81501.0,2.03477128]
[1741915472336,1e-07,81502.0,81501.0,1.9965809]
[1741915472994,1e-07,81502.0,81501.0,1.9905809]
[1741915473401,1e-07,81502.0,81501.0,1.9965809]
[1741915473803,1e-07,81502.0,81501.0,2.03473275]
[1741915474003,2e-07,81516.0,81515.0,0.56262]
[1741915474203,0.0003382,81518.0,81515.0,0.56262]
[1741915474204,5e-07,81518.0,81517.0,0.68288785]
[1741915474401,5e-07,81518.0,81517.0,1.09218785]
[1741915474652,5e-07,81518.0,81517.0,1.2820786]
[1741915474802,5e-07,81518.0,81517.0,1.31394034]
[1741915475211,5e-07,81518.0,81517.0,1.31433169]
[1741915476278,5e-07,81518.0,81517.0,1.30933169]
[1741915476683,5e-07,81518.0,81517.0,1.32033169]
[1741915476865,5e-07,81518.0,81517.0,1.28346995]
[1741915477161,0.012263,81545.0,81537.0,0.25755]
[1741915477361,0.245263,81545.0,81539.0,0.245281]
[1741915477768,0.01922197,81544.0,81540.0,0.0035406]
[1741915478067,0.20714024,81545.0,81540.0,0.02770161]
[1741915478280,0.012263,81544.0,81540.0,0.0035406]
[1741915478483,0.012263,81544.0,81538.0,0.14004]
[1741915478651,0.012263,81544.0,81541.0,0.00354578]
[1741915478854,0.245269,81543.0,81538.0,0.14004]
[1741915479246,0.22695691,81545.0,81539.0,0.02451509]
[1741915479445,0.22695691,81545.0,81540.0,0.00355132]
[1741915479658,0.24527,81543.0,81540.0,0.00355132]
[1741915480317,0.245275,81542.0,81540.0,0.00655132]
[1741915480492,0.012263,81541.0,81540.0,0.00655132]
[1741915480692,0.012263,81541.0,81540.0,0.14004]
[1741915481010,0.012263,81541.0,81540.0,0.14504]
[1741915481435,0.012263,81541.0,81540.0,0.14304]
[1741915481658,0.012263,81541.0,81540.0,0.14204]
[1741915481949,0.012263,81541.0,81540.0,0.14004]
[1741915482566,0.01922292,81541.0,81540.0,0.14004]
[1741915482944,0.01922292,81541.0,81540.0,0.14359122]
[1741915483342,0.01922292,81541.0,81540.0,0.14459122]
[1741915483537,0.01922292,81541.0,81540.0,0.14759122]
[1741915483926,0.01922292,81541.0,81540.0,0.00755122]
[1741915484126,0.01922292,81541.0,81540.0,0.14455122]
[1741915484561,0.01922292,81541.0,81540.0,0.14655122]
[1741915484976,0.01922292,81541.0,81540.0,0.14855122]
[1741915485923,0.26449792,81541.0,81540.0,0.14855122]
[1741915486062,0.27676092,81541.0,81540.0,0.14855122]
[1741915486421,0.26449792,81541.0,81540.0,0.14555122]
[1741915486585,0.26449792,81541.0,81540.0,0.14855122]
[1741915487486,0.26466702,81541.0,81540.0,0.14855122]
[1741915487942,0.01939202,81541.0,81540.0,0.14855122]
[1741915489560,0.01939202,81541.0,81540.0,0.40609222]
[1741915492513,0.01939202,81541.0,81540.0,0.14855122]
[1741915492668,0.03165502,81541.0,81540.0,0.14855122]
[1741915494659,0.03165502,81541.0,81540.0,0.00855122]
[1741915494863,0.03165502,81541.0,81540.0,0.14855122]
[1741915495011,0.03165502,81541.0,81540.0,0.145]
[1741915495533,0.012263,81543.0,81540.0,0.14853826]
[1741915495739,0.012263,81541.0,81540.0,0.14853826]
[1741915495985,0.245272,81542.0,81540.0,0.14853826]
[1741915496386,0.245272,81542.0,81540.0,0.14553826]
[1741915496516,0.245268,81544.0,81540.0,0.14553826]
[1741915496720,0.01981667,81545.0,81541.0,0.257535]
[1741915496921,0.245255,81548.0,81542.0,0.012263]
[1741915497147,0.257521,81547.0,81541.0,0.245272]
[1741915497324,0.257521,81547.0,81543.0,0.0035375]
[1741915497325,0.245262,81546.0,81543.0,0.0035375]
[1741915497520,0.245262,81546.0,81540.0,0.145]
[1741915497707,0.245262,81546.0,81544.0,0.0035375]
[1741915498097,0.257521,81547.0,81544.0,0.00039135]
[1741915498291,0.245262,81546.0,81545.0,0.0035375]
[1741915498451,0.257525,81546.0,81545.0,0.0035375]
[1741915499275,0.27674718,81546.0,81545.0,0.0035375]
[1741915499443,0.012263,81545.0,81544.0,0.00039135]
[1741915499867,0.0124321,81545.0,81544.0,0.00392885]
[1741915501440,0.0124321,81545.0,81544.0,0.00592885]
[1741915501849,0.0124321,81545.0,81544.0,0.00692885]
[1741915505948,0.0001691,81545.0,81544.0,0.01919185]
[1741915506178,0.0001691,81545.0,81544.0,0.00692885]
[1741915506930,0.0001691,81545.0,81544.0,0.00492885]
[1741915507205,0.0001691,81545.0,81544.0,0.00892885]
[1741915507542,0.0001691,81545.0,81544.0,0.01292885]
[1741915510000,0.0001691,81545.0,81544.0,0.02519185]
[1741915512037,0.0001691,81545.0,81544.0,0.01292885]
[1741915516691,5.409e-05,81545.0,81544.0,0.01292885]
[1741915518915,0.01916717,81546.0,81544.0,0.01292885]
[1741915519783,0.01916717,81546.0,81544.0,0.00792885]
[1741915520587,0.01916717,81546.0,81544.0,0.01292885]
[1741915521522,0.01916717,81546.0,81545.0,0.257526]
[1741915521772,0.01916717,81546.0,81545.0,0.26105261]
[1741915522099,0.01916717,81546.0,81545.0,0.35269346]
[1741915522298,0.0003384,81550.0,81549.0,0.39795385]
[1741915522724,0.0003384,81550.0,81549.0,0.40146326]
[1741915522925,0.0003384,81550.0,81549.0,0.41296865]
[1741915523217,0.0003384,81550.0,81549.0,0.15545565]
[1741915523422,0.0003384,81550.0,81549.0,0.02955565]
[1741915523828,0.0003384,81550.0,81549.0,0.03204624]
[1741915524027,0.0003384,81550.0,81549.0,0.03555519]
[1741915524455,0.0126004,81550.0,81549.0,0.00950895]
[1741915524671,0.0126004,81550.0,81549.0,0.012]
[1741915525232,0.0003384,81550.0,81549.0,0.012]
[1741915525443,0.0003384,81550.0,81549.0,0.006]
[1741915525646,0.0003384,81550.0,81549.0,0.16320285]
[1741915525912,0.0003384,81550.0,81549.0,0.15844498]
[1741915526109,0.0003384,81550.0,81549.0,0.15444498]
[1741915526306,0.0003384,81550.0,81549.0,0.15844498]
[1741915526507,0.0003384,81550.0,81549.0,0.09630413]
[1741915526708,0.0003384,81550.0,81549.0,0.09030413]
[1741915527116,0.0003384,81550.0,81549.0,0.34055513]
[1741915527438,0.0003384,81550.0,81549.0,0.25775513]
[1741915527724,0.0003384,81550.0,81549.0,0.25275513]
[1741915527983,0.0003384,81550.0,81549.0,0.25775513]
[1741915528464,0.0003384,81550.0,81549.0,0.27001713]
[1741915530438,0.01955843,81550.0,81549.0,0.27001713]
[1741915531019,0.01955843,81550.0,81549.0,0.28455798]
[1741915531220,0.01955843,81550.0,81549.0,0.36275798]
[1741915531456,0.01955843,81550.0,81549.0,0.41245798]
[1741915532063,0.01955843,81550.0,81549.0,0.4199559]
[1741915532477,0.01955843,81550.0,81549.0,0.4259559]
[1741915533074,0.01955843,81550.0,81549.0,0.4209559]
[1741915533412,0.01955843,81550.0,81549.0,0.4269559]
[1741915533800,0.01955843,81550.0,81549.0,0.41545798]
[1741915536914,0.01955843,81550.0,81549.0,1.19421798]
[1741915542133,0.01955843,81550.0,81549.0,1.20570831]
[1741915542330,0.0003382,81556.0,81555.0,0.381894]
[1741915542580,0.0003382,81556.0,81555.0,0.94561485]
[1741915542761,0.0003382,81556.0,81555.0,0.94906513]
[1741915543550,0.0003382,81556.0,81555.0,0.95506513]
[1741915544271,0.0003382,81556.0,81555.0,0.96106513]
[1741915544452,0.0003382,81556.0,81555.0,0.57917113]
[1741915545501,0.0003382,81556.0,81555.0,0.57317113]
[1741915546086,0.0003382,81556.0,81555.0,0.58543213]
[1741915546295,0.0003382,81556.0,81555.0,1.37011213]
[1741915547284,0.0003382,81556.0,81555.0,0.96081213]
[1741915548626,0.0003382,81556.0,81555.0,0.99651466]
[1741915550432,0.3,81585.0,81558.0,0.02680185]
[1741915550811,0.3,81585.0,81560.0,0.01454085]
[1741915551144,0.3,81585.0,81559.0,0.01454085]
[1741915551345,0.245212,81562.0,81559.0,0.01454085]
[1741915551556,0.245212,81562.0,81560.0,0.00343118]
[1741915552444,0.245212,81562.0,81560.0,0.00743118]
[1741915552678,0.245212,81562.0,81560.0,0.00343118]
[1741915553071,0.245212,81562.0,81560.0,0.00843118]
[1741915553645,0.257472,81562.0,81560.0,0.00843118]
[1741915553852,0.257472,81562.0,81560.0,0.01443118]
[1741915553853,0.09306,81561.0,81560.0,0.01443118]
[1741915554056,0.14126,81561.0,81560.0,0.01443118]
[1741915555786,0.14126,81561.0,81560.0,0.00943118]
[1741915556116,0.14126,81561.0,81560.0,0.01443118]
[1741915556254,0.14126,81561.0,81560.0,0.00843118]
[1741915556466,0.14126,81561.0,81556.0,0.13988]
[1741915556467,0.012261,81557.0,81556.0,0.13988]
[1741915556659,0.257488,81557.0,81556.0,0.13988]
[1741915557721,0.257488,81557.0,81556.0,0.14288]
[1741915557917,0.257488,81557.0,81556.0,0.12366085]
[1741915558109,0.245227,81557.0,81556.0,0.12366085]
[1741915558302,0.245227,81557.0,81556.0,0.12866085]
[1741915558499,0.245227,81557.0,81556.0,0.1320924]
[1741915559470,0.01921901,81557.0,81556.0,0.3773224]
[1741915559669,0.01921901,81557.0,81556.0,0.3895834]
[1741915559870,0.01921901,81557.0,81556.0,0.1320924]
[1741915560077,0.27670701,81557.0,81556.0,0.1320924]
[1741915560449,0.27670701,81557.0,81556.0,0.12866085]
[1741915560857,0.01921901,81557.0,81556.0,0.12866085]
[1741915561260,0.01921901,81557.0,81556.0,0.13215586]
[1741915562965,0.01921901,81557.0,81556.0,0.23849935]
[1741915563246,0.26327551,81571.0,81566.0,0.01226]
[1741915563371,0.01808951,81571.0,81567.0,0.245197]
[1741915563568,0.245188,81570.0,81563.0,0.257466]
[1741915563768,0.245194,81568.0,81564.0,0.00349501]
[1741915564013,0.245188,81570.0,81564.0,0.00349501]
[1741915564158,0.2452,81567.0,81564.0,0.00349501]
[1741915564362,0.01226,81566.0,81560.0,0.01454085]
[1741915564574,0.245208,81564.0,81562.0,0.01454085]
[1741915564777,0.257468,81564.0,81562.0,0.01454085]
[1741915565152,0.257468,81564.0,81563.0,0.00349501]
[1741915566367,0.2452,81566.0,81563.0,0.00349501]
[1741915566573,0.01921744,81564.0,81562.0,0.245212]
[1741915566868,0.01921744,81564.0,81563.0,0.01526]
[1741915567012,0.01921744,81564.0,81563.0,0.02026]
[1741915567355,0.00049779,81579.0,81570.0,0.257447]
[1741915567552,0.00049779,81579.0,81570.0,0.41182785]
[1741915567756,0.01921614,81577.0,81576.0,0.257426]
[1741915568182,0.03632103,81577.0,81576.0,0.257426]
[1741915568598,0.03632103,81577.0,81576.0,0.2723582]
[1741915568803,0.03632103,81577.0,81576.0,0.0149322]
[1741915569833,0.28148803,81577.0,81576.0,0.0149322]
[1741915570643,0.03632103,81577.0,81576.0,0.0159322]
[1741915572507,0.03632103,81577.0,81576.0,0.0943322]
[1741915572709,0.01710489,81577.0,81576.0,0.1065902]
[1741915573130,0.00049779,81579.0,81578.0,0.02679885]
[1741915573536,0.00049779,81579.0,81578.0,0.01454085]
[1741915574655,0.00049779,81579.0,81578.0,0.01854085]
[1741915575840,0.00049779,81579.0,81578.0,0.03079885]
[1741915576049,0.00049779,81579.0,81578.0,0.03379885]
[1741915576258,0.01762088,81579.0,81578.0,0.03379885]
[1741915576458,0.00049779,81579.0,81578.0,0.02154085]
[1741915576701,0.00049779,81579.0,81578.0,0.02494071]
[1741915576913,0.00066679,81579.0,81578.0,0.02494071]
[1741915577831,0.0173428,81579.0,81578.0,0.02494071]
[1741915579058,0.0173428,81579.0,81578.0,0.28236271]
[1741915579263,0.0173428,81579.0,81578.0,0.27836271]
[1741915579662,0.0173428,81579.0,81578.0,0.28236271]
[1741915579862,0.0173428,81579.0,81578.0,0.27936271]
[1741915580214,0.0173428,81579.0,81578.0,0.32096271]
[1741915580335,0.0173428,81579.0,81578.0,0.32896271]
[1741915580542,0.00066679,81579.0,81578.0,0.32596271]
[1741915580749,0.00066679,81579.0,81578.0,0.42555549]
[1741915580965,7.9e-07,81579.0,81578.0,0.42555549]
[1741915581160,7.9e-07,81579.0,81578.0,1.20107549]
[1741915581560,7.9e-07,81579.0,81578.0,1.21555611]
[1741915581763,7.9e-07,81579.0,81578.0,1.21255611]
[1741915581967,7.9e-07,81579.0,81578.0,1.62185611]
[1741915582207,7.9e-07,81579.0,81578.0,1.92185611]
[1741915582408,7.9e-07,81579.0,81578.0,2.0465571]
[1741915582568,7.9e-07,81579.0,81578.0,2.0415571]
[1741915582766,7.9e-07,81579.0,81578.0,2.0915571]
[1741915583008,7.9e-07,81579.0,81578.0,2.0965571]
[1741915583236,8.9e-07,81584.0,81583.0,0.682606]
[1741915583450,8.9e-07,81584.0,81583.0,0.82017693]
[1741915583851,0.000169,81623.0,81599.0,0.257356]
[1741915583996,0.000169,81623.0,81599.0,0.54016969]
[1741915584193,0.01657237,81611.0,81599.0,0.54016969]
[1741915584651,0.08238062,81622.0,81615.0,0.257303]
[1741915584856,0.01242,81623.0,81615.0,0.257303]
[1741915584857,0.000169,81623.0,81621.0,0.012251]
[1741915585170,0.000169,81623.0,81619.0,0.24504]
[1741915585370,0.000169,81623.0,81617.0,0.245046]
[1741915585574,0.245031,81622.0,81618.0,0.00326518]
[1741915585733,0.245031,81622.0,81618.0,0.00365653]
[1741915586876,0.01720708,81623.0,81620.0,0.245035]
[1741915587056,0.01720708,81623.0,81620.0,0.257286]
[1741915587257,0.01720708,81623.0,81621.0,0.00325694]
[1741915587803,0.245031,81622.0,81621.0,0.00325694]
[1741915588040,0.338882,81622.0,81621.0,0.13976]
[1741915588254,0.012251,81620.0,81618.0,0.00039135]
[1741915588485,0.257292,81619.0,81618.0,0.00039135]
[1741915589180,0.257292,81619.0,81618.0,0.14015135]
[1741915589998,0.24504,81619.0,81618.0,0.14015135]
[1741915590279,0.03191646,81619.0,81618.0,0.14540829]
[1741915590649,0.03191646,81619.0,81618.0,0.15766029]
[1741915590979,0.000169,81619.0,81618.0,0.15866029]
[1741915591567,0.000169,81619.0,81618.0,0.14640829]
[1741915592504,0.000169,81619.0,81618.0,0.39145129]
[1741915592800,0.000169,81619.0,81618.0,0.40370329]
[1741915593223,0.000169,81619.0,81618.0,0.14640829]
[1741915596878,0.257288,81621.0,81618.0,0.00664829]
[1741915597086,0.257288,81621.0,81618.0,0.14636829]
[1741915597535,0.012251,81620.0,81618.0,0.14636829]
[1741915597875,0.257288,81621.0,81618.0,0.14636829]
[1741915598238,0.257288,81621.0,81618.0,0.14536829]
[1741915598895,0.01720708,81623.0,81621.0,0.257283]